bitfinex/quotes_ETHUSD_20220220
["timestamp","ask_amount","ask_price","bid_price","bid_amount"]
[1645381775954,0.00349833,2657.1,2657.0,0.68344952]
[1645381782242,0.00349833,2657.1,2657.0,0.67701768]
[1645381783146,10.0,2657.0,2655.5,0.188]
[1645381783344,10.0,2657.0,2655.3,1.1887]
[1645381783345,15.20206169,2656.9,2655.3,1.1887]
[1645381783543,15.20206169,2656.9,2654.9,0.1882]
[1645381783742,1.1442,2656.8,2654.9,1.3655]
[1645381783941,1.01838285,2656.0,2655.4,1.14639037]
[1645381784141,0.00386169,2655.9,2655.4,1.14639037]
[1645381784959,3.50386169,2655.9,2655.4,1.14639037]
[1645381785343,3.50386169,2655.9,2654.9,1.1773]
[1645381785609,3.50386169,2655.9,2654.7,0.1882]
[1645381785610,0.00386169,2655.9,2654.7,0.1882]
[1645381785808,0.00386169,2655.9,2654.8,1.60055737]
[1645381786009,0.00386169,2655.9,2654.9,1.60055737]
[1645381786208,0.00386169,2655.9,2654.7,0.7882]
[1645381786510,3.50386169,2655.9,2654.8,1.60054752]
[1645381786909,0.00386169,2655.9,2655.2,0.89052476]
[1645381787509,3.50386169,2655.9,2655.2,0.89052476]
[1645381787711,0.00386169,2655.9,2655.2,0.89052476]
[1645381787911,3.50386169,2655.9,2655.2,0.89052476]
[1645381788111,0.00386169,2655.9,2655.2,0.89052476]
[1645381788312,3.50386169,2655.9,2654.8,0.1882]
[1645381788512,3.50386169,2655.9,2654.6,0.00925417]
[1645381788513,0.1882,2655.8,2654.6,0.00925417]
[1645381788711,0.00386169,2655.7,2654.6,0.00925417]
[1645381789113,0.00386169,2655.7,2654.4,1.7464]
[1645381789344,0.00386169,2655.7,2654.9,0.92317314]
[1645381789345,0.9977324,2655.4,2654.9,0.92317314]
[1645381789545,0.1882,2655.6,2654.9,0.92317314]
[1645381789951,0.19206169,2655.8,2654.9,0.92317314]
[1645381790548,1.09853059,2655.7,2654.9,0.92317314]
[1645381790752,3.50386169,2655.6,2654.9,0.92317314]
[1645381793196,0.00386169,2655.6,2654.9,0.92317314]
[1645381793796,3.69206169,2655.6,2654.9,0.92317314]
[1645381794397,0.19206169,2655.6,2654.9,0.92317314]
[1645381794899,0.00386169,2655.6,2654.9,0.92317314]
[1645381795699,0.00346452,2655.5,2654.9,0.92317314]
[1645381796743,0.00346452,2655.5,2655.3,1.01469782]
[1645381797144,0.00386169,2655.8,2655.5,0.00457486]
[1645381797342,3.5,2656.0,2655.5,0.00457486]
[1645381797544,0.00386169,2655.9,2655.5,0.00457486]
[1645381799150,1.12716526,2655.7,2655.5,0.00457486]
[1645381799545,0.00386169,2655.9,2655.5,0.00457486]
[1645381800504,0.19206169,2655.9,2655.5,0.00457486]
[1645381800801,0.1882,2655.9,2655.5,0.00457486]
[1645381800997,1.01568254,2655.7,2655.5,0.00457486]
[1645381803699,3.5,2655.8,2655.5,0.00457486]
[1645381803899,1.22065749,2655.9,2655.5,0.00457486]
[1645381804103,3.5,2655.8,2655.5,0.00457486]
[1645381804547,1.09689997,2655.6,2655.5,0.00457486]
[1645381805850,1.10025112,2655.6,2655.5,0.00457486]
[1645381806051,16.11025112,2655.6,2655.5,0.00457486]
[1645381807352,4.60025112,2655.6,2655.5,0.00457486]
[1645381809196,16.11025112,2655.6,2655.5,1.997e-05]
[1645381809397,0.20643492,2655.5,2654.6,0.00848986]
[1645381809601,0.20643492,2655.5,2654.1,0.00262536]
[1645381809602,5.0,2655.1,2654.1,0.00262536]
[1645381809801,15.01,2655.0,2654.6,0.00848986]
[1645381810099,0.3,2654.9,2654.6,0.00848986]
[1645381810698,0.3,2654.9,2654.1,0.00262536]
[1645381810900,0.83670291,2654.6,2654.1,0.00262536]
[1645381811197,0.3,2654.9,2654.1,0.00262536]
[1645381811497,5.0368,2655.0,2654.1,0.00262536]
[1645381811746,0.3,2654.9,2654.1,0.00262536]
[1645381812344,0.94631245,2654.6,2654.1,0.00262536]
[1645381812545,3.5,2654.5,2654.1,0.00262536]
[1645381813144,0.94631245,2654.6,2654.1,0.00262536]
[1645381813345,1.2093,2654.7,2654.1,0.00262536]
[1645381813746,10.8958,2655.2,2654.1,0.00262536]
[1645381813747,10.7076,2655.2,2654.1,0.00262536]
[1645381814545,10.7076,2655.2,2654.1,0.011105]
[1645381814948,10.7076,2655.2,2654.7,0.9743721]
[1645381815146,0.8412195,2655.3,2654.7,0.9743721]
[1645381816616,0.8412195,2655.3,2654.5,0.00847949]
[1645381816815,3.75,2655.4,2654.1,0.30262536]
[1645381816816,0.4382,2655.4,2654.1,0.30262536]
[1645381817017,0.25,2655.4,2654.5,0.00847949]
[1645381818016,1.17488413,2655.4,2654.9,0.9170916]
[1645381818217,0.93805013,2655.4,2654.9,0.9170916]
[1645381818415,0.93805013,2655.4,2654.4,0.00847957]
[1645381819017,0.93805013,2655.4,2654.2,0.3]
[1645381819245,0.93805013,2655.4,2654.3,1.60112199]
[1645381819446,0.93805013,2655.4,2654.4,1.60112199]
[1645381819648,0.93805013,2655.4,2654.7,1.11127339]
[1645381820951,0.00334481,2655.3,2654.7,1.11127339]
[1645381826945,0.00334481,2655.3,2654.8,1.60111612]
[1645381827348,0.00334481,2655.3,2654.8,2.60111612]
[1645381827546,0.00334481,2655.3,2654.9,1.60111612]
[1645381827748,0.00334481,2655.3,2655.0,1.60111612]
[1645381827947,0.00334481,2655.3,2655.1,1.60111612]
[1645381828145,0.00334481,2655.3,2654.8,1.0]
[1645381828345,0.00334481,2655.3,2655.1,1.08185605]
[1645381828546,0.00334481,2655.3,2655.2,1.60096292]
[1645381829149,0.89354796,2655.7,2655.3,0.00433417]
[1645381829348,0.00386169,2656.0,2655.3,0.00433417]
[1645381829949,0.00386169,2656.0,2655.4,1.60080742]
[1645381830349,1.18896901,2655.9,2655.4,1.60080742]
[1645381830604,1.18896901,2655.9,2655.3,0.00433417]
[1645381831198,0.00386169,2656.0,2655.3,0.00433417]
[1645381831199,0.00386169,2656.0,2655.4,1.60086097]
[1645381833904,0.88207645,2655.9,2655.4,1.60086097]
[1645381835655,0.88532245,2655.9,2655.4,1.60086097]
[1645381836257,0.003246,2655.9,2655.4,1.60086097]
[1645381836458,0.003246,2655.9,2655.4,1.90086097]
[1645381836659,0.003246,2655.9,2655.5,1.60086097]
[1645381836861,0.003246,2655.9,2655.3,0.00433417]
[1645381837055,0.003246,2655.9,2655.4,1.60077324]
[1645381838100,0.86485757,2655.9,2655.4,1.60077324]
[1645381838796,0.003246,2655.9,2655.4,1.60077324]
[1645381839794,1.1118236,2655.9,2655.4,1.60077324]
[1645381844147,0.003246,2655.9,2655.4,1.60077324]
[1645381845350,0.003246,2655.9,2655.5,0.96215477]
[1645381845599,1.39637953,2656.1,2655.5,0.96215477]
[1645381845799,3.50386169,2656.2,2655.5,0.96215477]
[1645381846007,0.95375142,2657.2,2656.1,0.0129315]
[1645381846206,7.38,2658.6,2657.1,0.012242]
[1645381846508,42.20650198,2659.7,2658.3,0.01291893]
[1645381846509,2.38367646,2659.0,2658.3,0.01291893]
[1645381846704,1.90694117,2659.2,2658.3,0.01291893]
[1645381846909,0.89240626,2659.4,2658.3,4.41900777]
[1645381847107,0.25,2659.6,2658.3,3.5]
[1645381847306,0.5,2659.5,2658.3,3.8]
[1645381847507,1.59e-05,2659.7,2659.3,5.0]
[1645381847707,0.00590916,2661.2,2659.6,6.51213709]
[1645381847908,0.00590916,2661.2,2660.2,5.0]
[1645381848108,0.25,2661.2,2660.7,0.93988]
[1645381848308,1.13108545,2661.8,2660.3,11.51]
[1645381848504,1.14328838,2661.8,2660.2,2.81981]
[1645381848705,7.38,2661.6,2660.2,2.81981]
[1645381848904,0.00590916,2661.3,2659.9,0.13819997]
[1645381849106,1.03826179,2660.3,2659.6,1.0]
[1645381849351,1.03826179,2660.3,2659.6,3.5]
[1645381849753,1.03826179,2660.3,2659.4,1.0]
[1645381849950,1.03826179,2660.3,2659.4,0.3]
[1645381850349,1.03826179,2660.3,2659.1,1.0]
[1645381850558,1.03826179,2660.3,2659.2,3.5]
[1645381850754,1.03826179,2660.3,2659.1,3.5]
[1645381850956,1.63826179,2660.3,2659.1,3.5]
[1645381851153,0.00299956,2659.4,2659.1,3.5]
[1645381851555,0.4379,2660.2,2659.5,0.00599912]
[1645381851755,1.09980829,2659.8,2659.5,0.00599912]
[1645381852653,0.1879,2659.7,2659.5,0.00599912]
[1645381853902,4.49364857,2660.5,2659.6,9.0]
[1645381854109,1.0,2661.5,2660.5,1.70454192]
[1645381854305,3.73828056,2662.5,2661.2,0.01257281]
[1645381854504,7.63,2662.9,2661.3,1.87937]
[1645381854704,0.25,2662.9,2661.4,3.5]
[1645381854908,0.25,2662.9,2660.8,0.0983033]
[1645381854909,5.0,2662.6,2660.8,3.5983033]
[1645381855107,7.38,2662.4,2660.8,3.5983033]
[1645381855302,7.38,2662.4,2660.9,1.0]
[1645381855502,7.38,2662.4,2661.0,3.5]
[1645381855701,7.38,2662.4,2661.0,3.8]
[1645381855901,7.38,2662.4,2661.1,1.0]
[1645381856504,1.0529012,2661.7,2661.1,1.0]
[1645381856753,0.25,2662.3,2661.1,1.93982]
[1645381856953,0.25,2662.3,2661.2,3.5]
[1645381857153,0.25,2662.3,2661.1,1.93982]
[1645381857352,0.25,2662.3,2661.2,3.5]
[1645381857559,0.25,2662.3,2661.1,0.93982]
[1645381857753,0.85993895,2662.1,2661.2,3.5]
[1645381858056,0.25,2662.3,2661.6,0.93968]
[1645381858456,0.25,2662.3,2661.7,3.5]
[1645381858656,15.73,2663.1,2661.7,3.5]
[1645381858856,7.38,2663.1,2661.8,1.0]
[1645381859057,2.92224842,2663.1,2661.9,3.5]
[1645381859264,1.8529932,2663.4,2662.7,5.0]
[1645381859265,1.3529932,2663.4,2662.7,5.0]
[1645381859564,0.01893283,2664.4,2663.3,5.01260777]
[1645381859765,1.1583,2666.3,2664.1,0.01263865]
[1645381859964,3.61886564,2666.9,2664.1,3.76527855]
[1645381860164,0.85188897,2665.9,2665.0,0.9382]
[1645381860360,0.01234396,2667.4,2664.9,3.5]
[1645381860361,0.00741077,2666.8,2664.9,3.5]
[1645381860619,0.25,2666.8,2664.9,1.0]
[1645381860821,0.25,2666.8,2664.6,1.0]
[1645381861016,5.25,2666.8,2664.8,0.3]
[1645381861216,5.0,2666.3,2664.6,3.5]
[1645381861420,0.25,2666.8,2664.6,3.5]
[1645381861421,0.92287082,2665.4,2664.6,3.5]
[1645381861624,0.92287082,2665.4,2664.2,4.5]
[1645381861819,0.92287082,2665.4,2663.6,4.26592]
[1645381861820,0.00382843,2665.3,2663.8,3.5]
[1645381862215,5.00382843,2665.3,2663.9,3.5]
[1645381862421,1.0725167,2664.2,2663.9,3.5]
[1645381862616,1.0725167,2664.2,2663.4,0.11971511]
[1645381862617,0.00382843,2665.3,2663.4,3.61971511]
[1645381862822,5.0,2666.1,2663.4,3.61971511]
[1645381862823,0.00382843,2664.1,2663.4,3.61971511]
[1645381863016,0.00382843,2665.4,2663.4,3.61971511]
[1645381863216,0.00382843,2664.7,2663.4,3.61971511]
[1645381863421,5.0,2665.1,2663.4,0.11971511]
[1645381863617,5.3,2665.1,2663.5,1.0]
[1645381863817,0.00382843,2665.0,2663.6,3.5]
[1645381864019,0.00210911,2664.2,2663.6,3.5]
[1645381864275,0.00210911,2664.2,2663.4,0.11971511]
[1645381864460,0.86953089,2664.2,2663.4,0.11971511]
[1645381864760,0.00382843,2664.1,2663.4,0.11971511]
[1645381864963,0.86742178,2664.2,2663.4,0.11971511]
[1645381864964,0.82125021,2664.2,2663.4,0.11971511]
[1645381865161,0.00210919,2663.9,2663.4,0.11971511]
[1645381865573,0.92250284,2663.5,2663.4,0.11971511]
[1645381865766,0.92250284,2663.5,2662.9,0.1877]
[1645381865969,0.92250284,2663.5,2662.8,7.6986]
[1645381866464,0.00210931,2663.6,2662.8,7.5109]
[1645381866664,5.48862019,2663.4,2662.8,7.6986]
[1645381867369,0.96579576,2663.3,2662.8,7.5109]
[1645381867567,0.00119419,2663.2,2662.8,7.5109]
[1645381868019,0.1353,2663.1,2662.8,7.5109]
[1645381868819,0.13739511,2663.1,2662.8,7.5109]
[1645381869620,5.62392019,2663.1,2662.8,7.5109]
[1645381869820,5.4907153,2663.1,2662.8,7.5109]
[1645381870217,5.4907153,2663.1,2662.8,7.8109]
[1645381870817,5.48862019,2663.1,2662.8,7.8109]
[1645381871019,5.4907153,2663.1,2662.8,7.5109]
[1645381872054,5.48862019,2663.1,2662.8,7.5109]
[1645381872257,5.49071741,2663.1,2662.8,8.45015]
[1645381872661,5.49071741,2663.1,2662.8,7.5109]
[1645381873259,5.48862019,2663.1,2662.8,7.5109]
[1645381873455,5.49071741,2663.1,2662.8,7.5109]
[1645381873656,0.00209722,2663.1,2662.8,20.2600388]
[1645381873859,0.00209722,2663.1,2662.9,1.0]
[1645381874054,0.00838762,2663.5,2662.9,1.0]
[1645381874256,3.54858308,2663.8,2663.7,0.01677524]
[1645381875255,1.11911817,2663.8,2663.7,7.524e-05]
[1645381875507,5.0,2664.0,2663.7,7.524e-05]
[1645381875704,0.1353,2663.9,2663.7,7.524e-05]
[1645381876107,0.1364868,2663.9,2663.7,7.524e-05]
[1645381876904,0.1353,2663.9,2663.7,7.524e-05]
[1645381877105,0.0011868,2663.9,2663.7,7.524e-05]
[1645381877304,0.1353,2663.8,2663.7,7.524e-05]
[1645381877906,10.0,2663.7,2662.8,7.46097524]
[1645381878106,0.1353,2663.9,2662.8,7.46097524]
[1645381878306,0.0011868,2663.9,2662.8,7.46097524]
[1645381878512,1.152512,2663.1,2662.8,7.46097524]
[1645381879260,1.752512,2663.1,2662.8,7.46097524]
[1645381879455,1.752512,2663.1,2662.8,0.00226685]
[1645381879655,1.752512,2663.1,2662.8,6.685e-05]
[1645381879656,0.7353,2663.1,2662.8,6.685e-05]
[1645381879855,5.0,2662.9,2662.8,6.685e-05]
[1645381880056,0.1353,2663.0,2662.8,6.685e-05]
[1645381880354,0.1353,2663.0,2661.3,0.93973]
[1645381880555,0.00378741,2662.9,2661.3,1.23973]
[1645381880754,0.00378741,2662.9,2661.3,1.53973]
[1645381881955,1.15408932,2662.4,2661.3,2.30374077]
[1645381882156,0.00378741,2662.3,2661.3,2.30374077]
[1645381882356,0.00378741,2662.3,2661.3,3.24342037]
[1645381882756,0.00378741,2662.3,2661.4,1.0]
[1645381883303,0.00378741,2662.3,2661.3,2.4794096]
[1645381883901,0.00378741,2662.3,2661.3,3.57724556]
[1645381884308,3.50378741,2662.3,2661.7,0.00226732]
[1645381884711,0.00378741,2662.3,2661.7,0.00226732]
[1645381885205,0.00378741,2662.3,2661.1,0.1877]
[1645381885404,1.02191887,2662.0,2661.0,0.88802643]
[1645381885612,1.02191887,2662.0,2661.9,0.00226724]
[1645381885808,0.25,2662.4,2661.9,0.00226724]
[1645381886009,0.00378709,2662.3,2661.9,0.00226724]
[1645381886213,0.00378709,2662.9,2661.9,0.00226724]
[1645381886404,0.00378709,2662.9,2661.1,12.6977]
[1645381886607,0.00378709,2662.9,2661.1,13.2977]
[1645381886863,1.09211421,2662.3,2662.0,0.0022672]
[1645381887664,1.09211421,2662.3,2661.1,1.6]
[1645381887861,0.00378709,2662.2,2662.0,0.00226718]
[1645381888062,1.09211421,2662.3,2662.0,0.00226718]
[1645381888969,1.09211421,2662.3,2661.3,0.93976]
[1645381889164,0.00378709,2662.2,2662.0,0.0010849]
[1645381889365,1.09211421,2662.3,2662.0,0.0010849]
[1645381889765,0.00378709,2662.9,2662.0,0.0010849]
[1645381889966,0.00378709,2662.9,2661.7,0.93959]
[1645381890365,0.00378709,2662.9,2662.0,0.0010849]
[1645381891210,0.00378709,2662.9,2661.7,0.93959]
[1645381891417,0.00378709,2662.9,2662.3,0.00108478]
[1645381892513,0.00378709,2662.9,2662.1,11.6977]
[1645381892712,0.00378709,2662.9,2662.5,0.00226415]
[1645381892911,0.00226336,2663.4,2662.5,0.00226415]
[1645381893115,0.00378709,2663.0,2662.5,0.00226415]
[1645381893412,1.17681924,2663.1,2662.5,0.00226415]
[1645381893612,0.00378709,2663.1,2662.4,1.53937]
[1645381893813,0.00378709,2663.8,2662.4,1.53937]
[1645381894014,0.00226342,2663.4,2662.6,0.00226409]
[1645381894657,0.92917462,2663.4,2662.8,0.93923]
[1645381894855,0.93069829,2663.4,2662.8,0.93923]
[1645381895053,0.93296182,2663.4,2662.8,0.93923]
[1645381895257,0.00605062,2663.4,2662.8,0.93923]
[1645381895455,0.00605062,2663.4,2662.7,1.24146986]
[1645381895654,0.00226353,2663.4,2662.7,1.24146986]
[1645381896059,0.01283915,2664.0,2663.4,0.00679059]
[1645381896060,0.00378709,2664.0,2663.4,0.00679059]
[1645381896258,0.00905215,2664.0,2663.4,0.00679059]
[1645381897254,1.43897715,2664.1,2663.4,1.00679059]
[1645381897455,0.00226348,2663.8,2663.4,1.00679059]
[1645381897660,0.00226348,2663.8,2663.5,1.239]
[1645381898108,0.00226348,2663.8,2663.5,1.539]
[1645381898511,0.00378709,2664.1,2663.5,1.539]
[1645381898708,0.0022635,2663.8,2663.5,1.539]
[1645381899312,4.2490411,2664.8,2663.6,15.01]
[1645381899523,2.33587387,2666.3,2663.6,15.01]
[1645381899524,7.38,2666.0,2664.6,5.0]
[1645381899719,0.19620994,2667.1,2664.7,16.74087928]
[1645381899918,0.05,2668.0,2665.1,11.51]
[1645381900114,0.9312,2667.9,2665.6,0.01255947]
[1645381900318,0.25,2667.6,2666.2,0.01242883]
[1645381900515,0.9312,2667.9,2666.9,0.01249777]
[1645381900716,0.9312,2667.9,2666.5,1.8751128]
[1645381900717,1.02362691,2667.8,2667.0,0.1874]
[1645381900915,1.02362691,2667.8,2666.5,1.3]
[1645381901116,1.02362691,2667.8,2666.3,2.81243]
[1645381901313,0.00115614,2667.5,2666.4,1.0]
[1645381901771,0.00115614,2667.5,2665.7,3.82559997]
[1645381901772,0.01394507,2667.5,2666.1,1.3]
[1645381901962,1.15119442,2666.5,2666.1,1.3]
[1645381902162,1.15119442,2666.5,2666.1,0.3]
[1645381902359,1.15119442,2666.5,2665.8,1.6]
[1645381902560,0.00115614,2666.9,2665.8,1.6]
[1645381902761,0.00115614,2666.9,2665.9,6.3140421]
[1645381902958,0.00115614,2666.9,2665.9,3.7519921]
[1645381903158,0.00115614,2666.9,2666.0,1.3]
[1645381903357,0.25,2667.2,2666.0,1.3]
[1645381903558,1.16117846,2666.9,2666.0,1.3]
[1645381904360,1.16117846,2666.9,2665.9,1.87599]
[1645381906004,0.00224676,2666.5,2665.9,1.87599]
[1645381907004,1.17016416,2666.9,2665.9,1.87599]
[1645381907005,1.16117846,2666.9,2665.9,1.87599]
[1645381907207,0.00224684,2666.3,2665.9,1.87599]
[1645381908205,1.03691011,2666.5,2665.9,1.87599]
[1645381908407,0.00224688,2666.2,2665.9,1.87599]
[1645381909276,0.25,2667.2,2665.9,2.8140204]
[1645381909459,0.25,2667.2,2666.0,3.5]
[1645381909659,0.0022469,2666.2,2666.0,3.5]
[1645381909859,0.0022469,2666.2,2665.9,3.55832376]
[1645381910259,0.94188731,2667.0,2665.9,3.55832376]
[1645381910561,0.94188731,2667.0,2666.0,4.5]
[1645381910761,0.94188731,2667.0,2666.0,1.0]
[1645381910762,0.0022469,2666.2,2666.0,1.0]
[1645381911160,0.0022469,2666.2,2665.9,2.87599]
[1645381911364,0.0022469,2666.2,2665.9,1.0]
[1645381911561,0.0022469,2666.2,2665.7,0.13819997]
[1645381911562,1.06861993,2666.1,2665.7,0.13819997]
[1645381911764,1.06861993,2666.1,2665.5,0.1875]
[1645381911962,1.06861993,2666.1,2664.7,3.75234]
[1645381912262,0.9805,2666.4,2664.1,3.76593865]
[1645381912263,5.0,2666.3,2665.9,2.2e-07]
[1645381912462,1.0,2666.2,2665.9,2.2e-07]
[1645381912862,0.3,2666.3,2665.9,2.2e-07]
[1645381913110,0.9805,2666.4,2664.6,3.5]
[1645381913410,0.3591,2666.6,2664.6,3.5]
[1645381913411,1.08169078,2665.8,2664.7,1.86043103]
[1645381913812,1.08169078,2665.8,2664.7,13.37043103]
[1645381914014,0.3591,2666.6,2664.8,15.01]
[1645381914209,0.3591,2666.6,2665.0,12.44845]
[1645381914414,0.3591,2666.6,2665.1,4.5]
[1645381914415,0.61024709,2666.6,2665.1,4.5]
[1645381914609,0.00374652,2666.5,2665.1,5.438326]
[1645381914810,0.00374652,2666.5,2665.1,1.0]
[1645381915012,0.00374652,2666.5,2664.9,3.5]
[1645381915212,1.01669069,2665.9,2664.9,3.5]
[1645381915410,0.00374652,2665.8,2664.8,3.5]
[1645381915609,0.00374652,2665.8,2664.8,4.8]
[1645381915808,0.00374652,2665.8,2665.6,0.00224727]
[1645381916011,1.01669069,2665.9,2665.6,0.00224727]
[1645381917062,1.01669069,2665.9,2665.6,0.00334679]
[1645381917260,1.01669069,2665.9,2665.6,0.00109952]
[1645381917662,0.00374652,2666.2,2665.6,0.00109952]
[1645381917868,0.6091,2666.6,2665.6,0.00109952]
[1645381917869,0.00374652,2666.4,2666.2,0.01123956]
[1645381918064,0.6091,2666.6,2666.2,0.01123956]
[1645381918261,0.36284652,2666.6,2666.2,0.01123956]
[1645381918461,0.3591,2666.6,2666.2,0.01123956]
[1645381918861,1.10264682,2666.3,2666.2,0.01123956]
[1645381919464,0.36509034,2666.6,2666.2,0.01123956]
[1645381919669,0.36134382,2666.6,2666.2,0.01123956]
[1645381920713,0.3591,2666.6,2666.2,0.01123956]
[1645381921315,0.3591,2666.6,2666.2,0.19873956]
[1645381921713,0.3591,2666.6,2666.2,1.19873956]
[1645381921915,0.3591,2666.6,2666.3,6.3135317]
[1645381923716,0.00374652,2667.1,2666.3,6.2635317]
[1645381924124,0.00208836,2666.6,2666.3,6.2635317]
[1645381924369,0.00208836,2666.6,2666.3,2.7635317]
[1645381925563,0.00208836,2666.6,2666.3,1.87569]
[1645381925964,0.00208836,2666.6,2666.2,6.38692956]
[1645381926163,0.00208836,2666.6,2666.2,6.68692956]
[1645381926767,0.00208836,2666.6,2666.2,3.18692956]
[1645381927765,0.00206641,2666.6,2666.2,3.18692956]
[1645381929015,0.00188258,2666.6,2666.2,0.01123956]
[1645381930216,1.06655677,2666.4,2666.2,0.01123956]
[1645381932662,0.00200452,2666.6,2666.2,0.01123956]
[1645381933962,0.00200456,2666.6,2666.2,0.01123956]
[1645381934366,1.09761242,2666.3,2666.2,0.01123956]
[1645381934963,0.00200456,2666.6,2666.2,0.01123956]
[1645381935165,0.00188909,2666.6,2666.2,0.01123956]
[1645381935811,0.00188909,2666.6,2666.3,0.00823612]
[1645381936011,1.12231656,2666.5,2666.3,0.00823612]
[1645381940859,1.12231656,2666.5,2666.2,0.01123956]
[1645381944915,21.5,2666.4,2666.1,9.121e-05]
[1645381945114,1.12606355,2666.5,2666.1,9.121e-05]
[1645381945712,0.00374699,2666.5,2665.8,0.00790996]
[1645381945910,0.00374699,2666.5,2665.9,0.00206894]
[1645381946110,2.16393537,2666.6,2665.9,0.00206894]
[1645381946309,35.01,2666.5,2665.8,7.89e-05]
[1645381946512,0.01625101,2666.4,2665.8,7.89e-05]
[1645381946793,11.51,2666.3,2665.8,7.89e-05]
[1645381947074,0.00374699,2666.2,2665.8,7.89e-05]
[1645381947873,12.45252699,2666.2,2665.8,7.89e-05]
[1645381948975,5.0,2665.9,2665.8,7.89e-05]
[1645381949381,1.31662,2665.8,2664.6,1.59526539]
[1645381949575,0.89119006,2665.1,2664.5,0.13819997]
[1645381949775,0.89119006,2665.1,2663.9,3.5]
[1645381949974,0.89119006,2665.1,2664.0,1.59553422]
[1645381950377,0.89119006,2665.1,2664.1,1.59553422]
[1645381950617,0.89119006,2665.1,2664.4,0.00206395]
[1645381951614,1.00765157,2664.5,2663.6,0.1875]
[1645381951812,1.00765157,2664.5,2663.7,1.59579568]
[1645381953016,1.00765157,2664.5,2664.0,0.00210168]
[1645381953821,1.00765157,2664.5,2663.7,1.59579568]
[1645381954018,0.25,2664.9,2663.7,1.59579568]
[1645381954287,0.93906,2665.1,2664.1,0.00210162]
[1645381954877,13.0651,2665.4,2664.1,0.00210162]
[1645381954878,1.1774,2665.4,2664.1,0.00210162]
[1645381955081,1.12618612,2665.0,2663.9,2.622506]
[1645381955277,1.12618612,2665.0,2664.0,2.59579568]
[1645381955479,1.12618612,2665.0,2664.5,0.00205912]
[1645381956277,1.12618612,2665.0,2664.1,1.0]
[1645381956776,1.12618612,2665.0,2664.6,0.00205906]
[1645381957479,1.12618612,2665.0,2664.1,1.0]
[1645381957677,1.12618612,2665.0,2664.7,0.00205904]
[1645381958713,1.12618612,2665.0,2663.8,4.39065389]
[1645381959013,1.12618612,2665.0,2664.7,0.00206518]
[1645381960024,1.12618612,2665.0,2663.8,3.5]
[1645381960216,1.12618612,2665.0,2664.7,0.00206518]
[1645381961216,1.12618612,2665.0,2663.8,3.5]
[1645381961418,1.12618612,2665.0,2664.7,0.00206518]
[1645381962267,1.12618612,2665.0,2663.9,3.5]
[1645381962471,1.12618612,2665.0,2663.8,1.0]
[1645381962666,1.12618612,2665.0,2664.7,0.00206429]
[1645381963570,1.12618612,2665.0,2663.9,12.69494041]
[1645381963770,1.12618612,2665.0,2664.7,0.00206429]
[1645381964169,1.1774,2665.4,2664.7,0.00206429]
[1645381964370,0.25,2665.5,2664.7,0.00206429]
[1645381964568,6.3728,2665.7,2664.7,0.00206429]
[1645381964770,6.3728,2665.7,2664.0,3.5]
[1645381964974,6.3728,2665.7,2665.0,0.00206418]
[1645381965611,0.9230592,2665.6,2665.0,0.00206418]
[1645381966012,0.85043501,2664.9,2664.0,3.8]
[1645381966217,6.3728,2665.7,2664.3,0.93861]
[1645381966420,3.2263,2666.2,2664.5,11.51]
[1645381966617,2.9506,2666.1,2664.6,3.5]
[1645381966816,2.9506,2666.1,2664.6,0.3]
[1645381967014,2.9506,2666.1,2664.7,1.0]
[1645381967213,2.9506,2666.1,2664.8,3.5]
[1645381967414,1.05538954,2665.4,2664.7,1.0]
[1645381967618,0.000977,2664.7,2664.6,3.8]
[1645381967815,0.000977,2664.7,2664.6,0.6]
[1645381968016,0.000977,2664.7,2664.6,4.1]
[1645381970466,0.000977,2664.7,2664.6,0.6]
[1645381970666,0.000977,2664.7,2664.6,5.3]
[1645381970867,0.000977,2664.7,2664.6,5.0]
[1645381971968,0.000977,2664.7,2664.6,20.01]
[1645381972171,0.25,2665.6,2664.7,16.0]
[1645381972371,0.25,2665.6,2664.8,17.7307658]
[1645381972575,0.25,2665.6,2664.9,13.1051258]
[1645381972772,0.25,2665.6,2665.0,0.1875]
[1645381973021,0.00217262,2666.5,2665.0,0.1875]
[1645381973022,0.25,2666.3,2665.0,0.1875]
[1645381973219,1.16651111,2666.3,2665.3,11.81]
[1645381973418,0.91651111,2666.3,2665.3,12.11]
[1645381973821,0.91651111,2666.3,2665.3,0.3]
[1645381974219,0.91651111,2666.3,2665.3,11.51]
[1645381974515,0.91651111,2666.3,2665.3,3.5]
[1645381974716,0.91651111,2666.3,2665.7,0.00204499]
[1645381974919,0.00204432,2666.5,2665.7,0.00204499]
[1645381975323,0.00204432,2666.5,2665.7,3.50204499]
[1645381975516,7.63,2666.7,2665.7,3.8]
[1645381975717,7.63,2666.7,2665.7,4.1]
[1645381975917,0.00204443,2666.5,2665.8,11.51204502]
[1645381976117,0.00204443,2666.5,2665.9,3.5]
[1645381976318,0.00204443,2666.5,2665.9,4.1]
[1645381976618,0.00204443,2666.5,2665.9,0.6]
[1645381976872,7.63,2666.7,2665.6,0.1875]
[1645381976873,0.86460546,2666.1,2665.6,0.1875]
[1645381977070,0.86460546,2666.1,2665.8,0.00207566]
[1645381977873,0.86460546,2666.1,2665.6,0.1875]
[1645381978270,0.86460546,2666.1,2665.8,0.00207556]
[1645381979070,0.86460546,2666.1,2665.6,0.1875]
[1645381979469,0.86460546,2666.1,2665.8,0.00207556]
[1645381980529,0.86460546,2666.1,2665.8,0.00205924]
[1645381981619,7.63,2666.7,2665.6,0.1875]
[1645381981818,0.0019964,2666.5,2665.8,0.00199697]
[1645381982919,0.00199647,2666.5,2665.8,0.00199705]
[1645381983717,0.00199647,2666.5,2665.8,0.94007705]
[1645381983917,0.89337332,2666.6,2665.8,0.93808]
[1645381984119,0.00200094,2666.5,2665.8,0.94008152]
[1645381985270,0.89337332,2666.6,2665.8,0.93808]
[1645381985468,0.00193127,2666.5,2665.8,0.94001183]
[1645381985968,0.00193127,2666.5,2665.8,12.45001183]
[1645381986372,0.25,2666.7,2665.8,0.93808]
[1645381986671,0.00193127,2666.5,2665.8,0.94001183]
[1645381987571,0.25,2666.7,2665.8,12.44808]
[1645381987770,0.00193295,2666.5,2665.8,12.45001351]
[1645381988516,0.00193295,2666.5,2666.0,11.51]